fUSD/lending_fUSD_20260127
["ID","MTS","AMOUNT","RATE_DAILY","PERIOD"]
[403800737,1769545551811,-500.0,0.00043367,120]
[403800738,1769545552292,-500.0,0.00043367,120]
[403800739,1769545552356,-500.0,0.00043367,120]
[403800740,1769545552420,-500.0,0.00043367,120]
[403800741,1769545552483,-500.0,0.00043367,120]
[403800742,1769545552547,-500.0,0.00043367,120]
[403800743,1769545552610,-504.56,0.00043367,120]
[403800744,1769545552674,-500.0,0.00043367,120]
[403800745,1769545552741,-500.0,0.00043367,120]
[403800746,1769545552815,-153.08,0.00043367,120]
[403800747,1769545552883,-457.99854961,0.00043367,120]
[403800748,1769545552948,-500.0,0.00043367,120]
[403800749,1769545553014,-500.0,0.00043367,120]
[403800750,1769545553082,-504.66901824,0.00043367,120]
[403800751,1769545553151,-520.2,0.00043367,120]
[403800752,1769545553217,-500.0,0.00043367,120]
[403800753,1769545553282,-500.0,0.00043367,120]
[403800754,1769545553351,-454.67061342,0.00043367,120]
[403800755,1769545553415,-500.0,0.00043367,120]
[403800756,1769545553481,-500.0,0.00043367,120]
[403800757,1769545553547,-500.0,0.00043367,120]
[403800758,1769545553619,-210.76171935,0.00043367,120]
[403800759,1769545553686,-500.0,0.00043367,120]
[403800760,1769545553753,-258.48,0.00043367,120]
[403800761,1769545553820,-500.0,0.00043367,120]
[403800762,1769545553886,-500.0,0.00043367,120]
[403800763,1769545553951,-500.0,0.00043367,120]
[403800764,1769545554017,-500.0,0.00043367,120]
[403800765,1769545554082,-525.07454717,0.00043367,120]
[403800766,1769545554149,-500.0,0.00043367,120]
[403800767,1769545554214,-500.0,0.00043367,120]
[403800768,1769545554277,-500.0,0.00043367,120]
[403800769,1769545554341,-500.0,0.00043367,120]
[403800770,1769545554403,-500.0,0.00043367,120]
[403800771,1769545554466,-500.0,0.00043367,120]
[403800772,1769545554528,-500.0,0.00043367,120]
[403800773,1769545554591,-500.0,0.00043367,120]
[403800774,1769545554657,-524.70366986,0.00043367,120]
[403800775,1769545554721,-500.0,0.00043367,120]
[403800776,1769545554785,-502.35820863,0.00043367,120]
[403800777,1769545554851,-502.41209435,0.00043367,120]
[403800778,1769545554922,-500.0,0.00043367,120]
[403800779,1769545554988,-516.77281284,0.00043367,120]
[403800780,1769545555052,-205.50218566,0.00043367,120]
[403800781,1769545555119,-500.0,0.00043367,120]
[403800782,1769545555183,-500.0,0.00043367,120]
[403800783,1769545555246,-500.0,0.00043367,120]
[403800784,1769545555310,-500.0,0.00043367,120]
[403800785,1769545555373,-153.23,0.00043367,120]
[403800786,1769545555437,-500.0,0.00043367,120]
[403800787,1769545555500,-549.03652545,0.00043367,120]
[403800788,1769545555569,-500.0,0.00043367,120]
[403800789,1769545555634,-500.0,0.00043367,120]
[403800790,1769545555699,-500.0,0.00043367,120]
[403800791,1769545555765,-500.0,0.00043367,120]
[403800792,1769545555832,-500.0,0.00043367,120]
[403800793,1769545555904,-303.35009562,0.00043367,120]
[403800794,1769545555983,-500.0,0.00043367,120]
[403800795,1769545556063,-500.0,0.00043367,120]
[403800796,1769545556129,-500.0,0.00043367,120]
[403800797,1769545556197,-530.32513828,0.00043367,120]
[403800798,1769545556270,-500.0,0.00043367,120]
[403800799,1769545556356,-229.78,0.00043367,120]
[403800800,1769545556440,-505.1401928,0.00043367,120]
[403800801,1769545556506,-500.0,0.00043367,120]
[403800802,1769545556572,-500.0,0.00043367,120]
[403800803,1769545556638,-500.0,0.00043367,120]
[403800804,1769545556698,-500.0,0.00043367,120]
[403800805,1769545556764,-500.0,0.00043367,120]
[403800806,1769545556831,-500.0,0.00043367,120]
[403800807,1769545556895,-521.9342579,0.00043367,120]
[403800808,1769545556959,-523.01495618,0.00043367,120]
[403800809,1769545557022,-500.0,0.00043367,120]
[403800810,1769545557085,-504.82799295,0.00043367,120]
[403800811,1769545557150,-500.0,0.00043367,120]
[403800812,1769545557220,-500.0,0.00043367,120]
[403800813,1769545557285,-500.0,0.00043367,120]
[403800814,1769545557349,-447.61047544,0.00043367,120]
[403800815,1769545557412,-500.0,0.00043367,120]
[403800816,1769545557476,-500.0,0.00043367,120]
[403800817,1769545557540,-500.0,0.00043367,120]
[403800818,1769545557605,-500.0,0.00043367,120]
[403800819,1769545557670,-504.33246031,0.00043367,120]
[403800820,1769545557734,-500.0,0.00043367,120]
[403800821,1769545557801,-500.0,0.00043367,120]
[403800822,1769545557868,-500.0,0.00043367,120]
[403800823,1769545557936,-500.0,0.00043367,120]
[403800824,1769545557999,-522.70213123,0.00043367,120]
[403800825,1769545558062,-500.0,0.00043367,120]
[403800826,1769545558126,-509.10837968,0.00043367,120]
[403800827,1769545558189,-500.0,0.00043367,120]
[403800828,1769545558253,-504.69105051,0.00043367,120]
[403800829,1769545558317,-500.0,0.00043367,120]
[403800830,1769545558380,-500.0,0.00043367,120]
[403800831,1769545558445,-500.0,0.00043367,120]
[403800832,1769545558509,-500.0,0.00043367,120]
[403800833,1769545558795,-412.76,0.00043367,120]
[403800834,1769545558861,-510.98792448,0.00043367,120]
[403800835,1769545558926,-500.0,0.00043367,120]
[403800836,1769545558995,-500.0,0.00043367,120]
[403800837,1769545559059,-500.0,0.00043367,120]
[403800838,1769545559125,-500.0,0.00043367,120]
[403800839,1769545559191,-500.0,0.00043367,120]
[403800840,1769545559257,-397.24,0.00043367,120]
[403800841,1769545559334,-518.36265004,0.00043367,120]
[403800843,1769545559400,-500.35988739,0.00043367,120]
[403800844,1769545559470,-500.0,0.00043367,120]
[403800845,1769545559534,-500.0,0.00043367,120]
[403800846,1769545559601,-507.87939913,0.00043367,120]
[403800847,1769545559669,-500.0,0.00043367,120]
[403800848,1769545559737,-357.5,0.00043367,120]
[403800849,1769545559804,-538.71498107,0.00043367,120]
[403800850,1769545559870,-500.0,0.00043367,120]
[403800851,1769545559934,-513.1442915,0.00043367,120]
[403800852,1769545559999,-194.16,0.00043367,120]
[403800853,1769545560066,-517.29240635,0.00043367,120]
[403800854,1769545560140,-502.67062841,0.00043367,120]
[403800855,1769545560207,-500.0,0.00043367,120]
[403800856,1769545560278,-500.0,0.00043367,120]
[403800857,1769545560352,-506.20579636,0.00043367,120]
[403800858,1769545560417,-500.0,0.00043367,120]
[403800859,1769545560482,-500.0,0.00043367,120]
[403800860,1769545560545,-500.0,0.00043367,120]
[403800861,1769545560611,-514.37866007,0.00043367,120]
[403800862,1769545560675,-500.0,0.00043367,120]
[403800863,1769545560741,-500.0,0.00043367,120]
[403800864,1769545560807,-500.0,0.00043367,120]
[403800865,1769545560873,-506.44746984,0.00043367,120]
[403800866,1769545560939,-500.0,0.00043367,120]
[403800867,1769545560999,-178.31648411,0.00043367,120]
[403800868,1769545561063,-500.0,0.00043367,120]
[403800869,1769545561127,-500.0,0.00043367,120]
[403800870,1769545561192,-500.0,0.00043367,120]
[403800871,1769545561255,-500.0,0.00043367,120]
[403800872,1769545561318,-565.42,0.00043367,120]
[403800873,1769545561385,-500.0,0.00043367,120]
[403800874,1769545561448,-500.0,0.00043367,120]
[403800875,1769545561512,-500.0,0.00043367,120]
[403800876,1769545561576,-500.0,0.00043367,120]
[403800877,1769545561641,-500.0,0.00043367,120]
[403800878,1769545561706,-500.0,0.00043367,120]
[403800879,1769545561770,-265.21258199,0.00043367,120]
[403800880,1769545561835,-500.0,0.00043367,120]
[403800881,1769545561901,-289.45891233,0.00043367,120]
[403800882,1769545561967,-500.0,0.00043367,120]
[403800883,1769545562032,-518.02288487,0.00043367,120]
[403800884,1769545562097,-512.22948097,0.00043367,120]
[403800885,1769545562161,-500.0,0.00043367,120]
[403800886,1769545562224,-509.90422526,0.00043367,120]
[403800887,1769545562288,-500.0,0.00043367,120]
[403800888,1769545562359,-500.0,0.00043367,120]
[403800889,1769545562427,-500.0,0.00043367,120]
[403800890,1769545562492,-523.08590979,0.00043367,120]
[403800891,1769545562554,-500.0,0.00043367,120]
[403800892,1769545562617,-505.68967548,0.00043367,120]
[403800893,1769545562681,-514.64213522,0.00043367,120]
[403800894,1769545562744,-543.6810454,0.00043367,120]
[403800895,1769545562808,-500.0,0.00043367,120]
[403800896,1769545562875,-500.0,0.00043367,120]
[403800897,1769545562940,-277.04231517,0.00043367,120]
[403800898,1769545563003,-500.0,0.00043367,120]
[403800899,1769545563067,-500.0,0.00043367,120]
[403800900,1769545563134,-500.0,0.00043367,120]
[403800901,1769545563201,-546.83,0.00043367,120]
[403800902,1769545563273,-500.0,0.00043367,120]
[403800903,1769545563341,-500.0,0.00043367,120]
[403800904,1769545563407,-500.0,0.00043367,120]
[403800905,1769545563472,-500.0,0.00043367,120]
[403800906,1769545563537,-516.26419092,0.00043367,120]
[403800907,1769545563604,-500.0,0.00043367,120]
[403800908,1769545563668,-500.0,0.00043367,120]
[403800909,1769545563734,-507.32923423,0.00043367,120]
[403800910,1769545563801,-514.41424084,0.00043367,120]
[403800911,1769545563872,-500.0,0.00043367,120]
[403800912,1769545563939,-367.84798414,0.00043367,120]
[403800913,1769545564007,-500.0,0.00043367,120]
[403800914,1769545564076,-500.0,0.00043367,120]
[403800915,1769545564141,-500.0,0.00043367,120]
[403800916,1769545564221,-344.31505399,0.00043367,120]
[403800917,1769545564282,-500.0,0.00043367,120]
[403800918,1769545564345,-500.0,0.00043367,120]
[403800919,1769545564409,-524.38259115,0.00043367,120]
[403800920,1769545564476,-500.0,0.00043367,120]
[403800921,1769545564541,-500.0,0.00043367,120]
[403800922,1769545564605,-500.0,0.00043367,120]
[403800923,1769545564669,-206.72042357,0.00043367,120]
[403800924,1769545564736,-500.0,0.00043367,120]
[403800925,1769545564802,-289.33087637,0.00043367,120]
[403800926,1769545564867,-500.0,0.00043367,120]
[403800927,1769545564932,-510.02672982,0.00043367,120]
[403800928,1769545565008,-517.48146727,0.00043367,120]
[403800929,1769545565076,-500.0,0.00043367,120]
[403800930,1769545565598,-493.69147354,0.00043367,120]
[403800931,1769545565665,-500.0,0.00043367,120]
[403800932,1769545565731,-539.87325467,0.00043367,120]
[403800933,1769545565811,-527.3,0.00043367,120]
[403800934,1769545565879,-513.16216621,0.00043367,120]
[403800935,1769545565946,-500.0,0.00043367,120]
[403800936,1769545566014,-500.0,0.00043367,120]
[403800937,1769545566082,-500.0,0.00043367,120]
[403800938,1769545566149,-510.78612401,0.00043367,120]
[403800939,1769545566216,-500.0,0.00043367,120]
[403800940,1769545566285,-504.91893348,0.00043367,120]
[403800941,1769545566349,-511.59569339,0.00043367,120]
[403800942,1769545566412,-519.91113284,0.00043367,120]
[403800943,1769545566478,-500.0,0.00043367,120]
[403800944,1769545566543,-552.60659309,0.00043367,120]
[403800945,1769545566607,-498.70132814,0.00043367,120]
[403800946,1769545566673,-509.99196905,0.00043367,120]
[403800947,1769545566737,-500.0,0.00043367,120]
[403800948,1769545566806,-506.98432828,0.00043367,120]
[403800949,1769545566871,-500.0,0.00043367,120]
[403800950,1769545566935,-516.32852486,0.00043367,120]
[403800951,1769545567003,-500.0,0.00043367,120]
[403800952,1769545567070,-500.0,0.00043367,120]
[403800953,1769545567137,-500.0,0.00043367,120]
[403800954,1769545567201,-500.0,0.00043367,120]
[403800955,1769545567268,-500.0,0.00043367,120]
[403800956,1769545567337,-500.0,0.00043367,120]
[403800957,1769545567404,-523.08360949,0.00043367,120]
[403800958,1769545567469,-500.0,0.00043367,120]
[403800959,1769545567535,-520.54135952,0.00043367,120]
[403800960,1769545567599,-500.0,0.00043367,120]
[403800961,1769545567665,-514.87144914,0.00043367,120]
[403800962,1769545567732,-500.0,0.00043367,120]
[403800963,1769545567798,-511.18414412,0.00043367,120]
[403800964,1769545567867,-500.0,0.00043367,120]
[403800965,1769545567933,-500.0,0.00043367,120]
[403800966,1769545567998,-500.0,0.00043367,120]
[403800967,1769545568065,-549.06376299,0.00043367,120]
[403800968,1769545568132,-506.25997129,0.00043367,120]
[403800969,1769545568197,-512.87110879,0.00043367,120]
[403800970,1769545568268,-500.0,0.00043367,120]
[403800971,1769545568335,-500.0,0.00043367,120]
[403800972,1769545568400,-500.0,0.00043367,120]
[403800973,1769545568466,-500.0,0.00043367,120]
[403800974,1769545568532,-522.25082932,0.00043367,120]
[403800975,1769545568600,-500.0,0.00043367,120]
[403800976,1769545568709,-500.0,0.00043367,120]
[403800977,1769545568824,-500.0,0.00043367,120]
[403800978,1769545568955,-500.0,0.00043367,120]
[403800979,1769545569073,-533.39420374,0.00043367,120]
[403800980,1769545569185,-500.0,0.00043367,120]
[403800981,1769545569292,-532.53943913,0.00043367,120]
[403800982,1769545569401,-500.0,0.00043367,120]
[403800983,1769545569502,-500.0,0.00043367,120]
[403800984,1769545569601,-500.0,0.00043367,120]
[403800985,1769545569700,-500.0,0.00043367,120]
[403800986,1769545569798,-500.0,0.00043367,120]
[403800987,1769545569894,-500.0,0.00043367,120]
[403800988,1769545569989,-511.64257913,0.00043367,120]
[403800989,1769545570087,-500.0,0.00043367,120]
[403800990,1769545570182,-500.0,0.00043367,120]
[403800991,1769545570278,-525.9440283,0.00043367,120]
[403800992,1769545570373,-500.0,0.00043367,120]
[403800993,1769545570466,-310.0,0.00043367,120]
[403800994,1769545570561,-515.28263647,0.00043367,120]
[403800995,1769545570684,-500.0,0.00043367,120]
[403800996,1769545570791,-500.0,0.00043367,120]
[403800997,1769545570892,-500.0,0.00043367,120]
[403800998,1769545570988,-500.0,0.00043367,120]
[403800999,1769545571084,-500.0,0.00043367,120]
[403801000,1769545571195,-500.0,0.00043367,120]
[403801001,1769545571308,-500.0,0.00043367,120]
[403801002,1769545571410,-500.0,0.00043367,120]
[403801003,1769545571505,-500.0,0.00043367,120]
[403801004,1769545571599,-468.38231055,0.00043367,120]
[403801005,1769545571706,-508.63108217,0.00043367,120]
[403801006,1769545571815,-500.0,0.00043367,120]
[403801007,1769545571914,-517.16993632,0.00043367,120]
[403801008,1769545572023,-522.65420689,0.00043367,120]
[403801009,1769545572116,-500.0,0.00043367,120]
[403801010,1769545572222,-500.0,0.00043367,120]
[403801011,1769545572322,-500.0,0.00043367,120]
[403801012,1769545572418,-523.33334245,0.00043367,120]
[403801013,1769545572508,-500.0,0.00043367,120]
[403801014,1769545572597,-509.7755782,0.00043367,120]
[403801015,1769545572684,-500.0,0.00043367,120]
[403801016,1769545572774,-500.0,0.00043367,120]
[403801017,1769545572858,-512.67501253,0.00043367,120]
[403801018,1769545572942,-450.0,0.00043367,120]
[403801019,1769545573030,-500.0,0.00043367,120]
[403801020,1769545573117,-500.0,0.00043367,120]
[403801021,1769545573203,-514.20173397,0.00043367,120]
[403801022,1769545573295,-500.0,0.00043367,120]
[403801023,1769545573394,-407.97347204,0.00043367,120]
[403801024,1769545573490,-500.0,0.00043367,120]
[403801025,1769545573594,-500.0,0.00043367,120]
[403801026,1769545573696,-508.86116151,0.00043367,120]
[403801027,1769545573794,-500.0,0.00043367,120]
[403801028,1769545573899,-512.46731718,0.00043367,120]
[403801029,1769545573972,-500.0,0.00043367,120]
[403801030,1769545574037,-507.11222747,0.00043367,120]
[403801031,1769545574100,-500.0,0.00043367,120]
[403801032,1769545574163,-191.01827277,0.00043367,120]
[403801033,1769545574227,-534.85566973,0.00043367,120]
[403801034,1769545574292,-500.0,0.00043367,120]
[403801035,1769545574731,-527.17466536,0.00043367,120]
[403801036,1769545574807,-526.94656333,0.00043367,120]
[403801037,1769545574872,-500.0,0.00043367,120]
[403801038,1769545574938,-515.66923364,0.00043367,120]
[403801039,1769545575003,-500.0,0.00043367,120]
[403801040,1769545575066,-500.0,0.00043367,120]
[403801041,1769545575128,-509.50250114,0.00043367,120]
[403801042,1769545575192,-507.17253567,0.00043367,120]
[403801043,1769545575264,-500.0,0.00043367,120]
[403801044,1769545575337,-502.54680994,0.00043367,120]
[403801045,1769545575400,-500.0,0.00043367,120]
[403801046,1769545575463,-500.0,0.00043367,120]
[403801047,1769545575529,-553.09109756,0.00043367,120]
[403801048,1769545575594,-540.70327656,0.00043367,120]
[403801049,1769545575660,-500.0,0.00043367,120]
[403801050,1769545575723,-500.0,0.00043367,120]
[403801051,1769545575787,-500.0,0.00043367,120]
[403801052,1769545575851,-500.0,0.00043367,120]
[403801053,1769545575918,-506.82357225,0.00043367,120]
[403801054,1769545575982,-502.67549702,0.00043367,120]
[403801055,1769545576047,-500.0,0.00043367,120]
[403801056,1769545576111,-500.0,0.00043367,120]
[403801057,1769545576176,-500.0,0.00043367,120]
[403801058,1769545576242,-513.40621369,0.00043367,120]
[403801059,1769545576305,-500.0,0.00043367,120]
[403801060,1769545576370,-527.2748919,0.00043367,120]
[403801061,1769545576431,-500.0,0.00043367,120]
[403801062,1769545576493,-502.73193352,0.00043367,120]
[403801063,1769545576556,-500.0,0.00043367,120]
[403801064,1769545576619,-500.0,0.00043367,120]
[403801065,1769545576685,-500.0,0.00043367,120]
[403801066,1769545576751,-500.0,0.00043367,120]
[403801067,1769545576815,-502.50481772,0.00043367,120]
[403801068,1769545576880,-500.0,0.00043367,120]
[403801069,1769545576948,-500.0,0.00043367,120]
[403801070,1769545577014,-331.18,0.00043367,120]
[403801071,1769545577080,-515.55964184,0.00043367,120]
[403801072,1769545577145,-502.39668994,0.00043367,120]
[403801073,1769545577210,-500.0,0.00043367,120]
[403801074,1769545577278,-500.0,0.00043367,120]
[403801075,1769545577344,-513.62629474,0.00043367,120]
[403801076,1769545577410,-546.65436624,0.00043367,120]
[403801077,1769545577474,-500.0,0.00043367,120]
[403801078,1769545577538,-500.0,0.00043367,120]
[403801079,1769545577604,-500.0,0.00043367,120]
[403801080,1769545577670,-500.0,0.00043367,120]
[403801081,1769545577738,-500.0,0.00043367,120]
[403801082,1769545577806,-548.88090509,0.00043367,120]
[403801083,1769545577871,-500.0,0.00043367,60]
[403801084,1769545577936,-539.96627018,0.00043367,60]
[403801085,1769545578002,-500.0,0.00043367,120]
[403801086,1769545578073,-515.94752701,0.00043367,120]
[403801087,1769545578138,-519.48908297,0.00043367,120]
[403801088,1769545578203,-250.0,0.00043367,120]
[403801089,1769545578268,-500.0,0.00043367,120]
[403801090,1769545578333,-513.666709,0.00043367,120]
[403801091,1769545578399,-500.0,0.00043367,120]
[403801092,1769545578464,-508.0802588,0.00043367,120]
[403801093,1769545578530,-500.0,0.00043367,120]
[403801094,1769545578594,-554.2027763,0.00043367,120]
[403801095,1769545578662,-500.0,0.00043367,120]
[403801096,1769545578727,-500.0,0.00043367,120]
[403801097,1769545578792,-508.08116886,0.00043367,120]
[403801098,1769545578858,-506.7177059,0.00043367,120]
[403801099,1769545578924,-505.42378578,0.00043367,120]
[403801100,1769545578990,-501.69782855,0.00043367,120]
[403801101,1769545579054,-500.0,0.00043367,120]
[403801102,1769545579117,-503.49232398,0.00043367,120]
[403801103,1769545579183,-500.0,0.00043367,120]
[403801104,1769545579248,-543.4110094,0.00043367,120]
[403801105,1769545579316,-500.0,0.00043367,120]
[403801106,1769545579380,-500.0,0.00043367,120]
[403801107,1769545579442,-500.0,0.00043367,120]
[403801108,1769545579505,-500.0,0.00043367,120]
[403801109,1769545579569,-500.0,0.00043367,120]
[403801110,1769545579632,-514.30939888,0.00043367,120]
[403801111,1769545579695,-502.89899828,0.00043367,120]
[403801112,1769545579761,-500.0,0.00043367,120]
[403801113,1769545579824,-505.62104911,0.00043367,120]
[403801114,1769545579890,-530.05809367,0.00043367,120]
[403801115,1769545579952,-500.0,0.00043367,120]
[403801116,1769545580016,-500.0,0.00043367,120]
[403801117,1769545580081,-500.0,0.00043367,120]
[403801118,1769545580145,-560.16,0.00043367,120]
[403801119,1769545580208,-339.07266475,0.00043367,120]
[403801120,1769545580273,-510.65760385,0.00043367,120]
[403801121,1769545580337,-500.0,0.00043367,120]
[403801122,1769545580401,-538.41961271,0.00043367,120]
[403801123,1769545580462,-500.0,0.00043367,120]
[403801124,1769545580525,-506.77842878,0.00043367,120]
[403801125,1769545580589,-500.0,0.00043367,120]
[403801126,1769545580895,-500.0,0.00043367,120]
[403801127,1769545580959,-500.0,0.00043367,120]
[403801128,1769545581022,-509.25638236,0.00043367,120]
[403801129,1769545581087,-500.56391184,0.00043367,120]
[403801130,1769545581151,-500.0,0.00043367,120]
[403801131,1769545581215,-500.0,0.00043367,120]
[403801132,1769545581281,-539.71180148,0.00043367,120]
[403801133,1769545581347,-500.0,0.00043367,120]
[403801134,1769545581413,-500.0,0.00043367,120]
[403801135,1769545581477,-500.0,0.00043367,120]
[403801136,1769545581541,-500.0,0.00043367,120]
[403801137,1769545581604,-500.0,0.00043367,120]
[403801138,1769545581668,-500.0,0.00043367,120]
[403801139,1769545581731,-463.89105518,0.00043367,120]
[403801140,1769545581797,-518.7932796,0.00043367,120]
[403801141,1769545581862,-500.0,0.00043367,120]
[403801142,1769545581927,-500.0,0.00043367,120]
[403801143,1769545581990,-252.12418338,0.00043367,120]
[403801144,1769545582056,-500.0,0.00043367,120]
[403801145,1769545582119,-508.08014663,0.00043367,120]
[403801146,1769545582187,-500.0,0.00043367,120]
[403801147,1769545582251,-500.0,0.00043367,120]
[403801148,1769545582316,-500.0,0.00043367,120]
[403801149,1769545582379,-500.0,0.00043367,120]
[403801150,1769545582442,-525.32835967,0.00043367,120]
[403801151,1769545582504,-500.0,0.00043367,120]
[403801152,1769545582568,-500.0,0.00043367,120]
[403801153,1769545582632,-500.0,0.00043367,120]
[403801154,1769545582697,-515.50155249,0.00043367,120]
[403801155,1769545582763,-506.5389294,0.00043367,120]
[403801156,1769545582829,-500.0,0.00043367,120]
[403801157,1769545582893,-500.0,0.00043367,120]
[403801158,1769545582957,-500.0,0.00043367,120]
[403801159,1769545583021,-523.56770839,0.00043367,120]
[403801160,1769545583090,-500.0,0.00043367,120]
[403801161,1769545583158,-519.23399266,0.00043367,120]
[403801162,1769545583249,-500.0,0.00043367,120]
[403801163,1769545583318,-257.9666133,0.00043367,120]
[403801164,1769545583390,-500.0,0.00043367,120]
[403801165,1769545583458,-500.0,0.00043367,120]
[403801166,1769545583525,-500.0,0.00043367,120]
[403801167,1769545583593,-542.87731327,0.00043367,120]
[403801168,1769545583662,-534.15421531,0.00043367,120]
[403801169,1769545583730,-500.0,0.00043367,120]
[403801170,1769545583799,-500.0,0.00043367,120]
[403801171,1769545583867,-500.0,0.00043367,120]
[403801172,1769545583938,-171.45,0.00043367,120]
[403801173,1769545584005,-161.59042351,0.00043367,120]
[403801174,1769545584076,-500.0,0.00043367,120]
[403801175,1769545584157,-500.0,0.00043367,120]
[403801176,1769545584228,-505.2046602,0.00043367,120]
[403801177,1769545584299,-500.0,0.00043367,120]
[403801178,1769545584367,-500.0,0.00043367,120]
[403801179,1769545584435,-544.07319009,0.00043367,120]
[403801180,1769545584503,-500.0,0.00043367,120]
[403801181,1769545584571,-505.71221225,0.00043367,120]
[403801182,1769545584639,-526.88636573,0.00043367,120]
[403801183,1769545584708,-500.0,0.00043367,120]
[403801184,1769545584777,-539.94954862,0.00043367,120]
[403801185,1769545584847,-500.0,0.00043367,120]
[403801186,1769545584916,-500.0,0.00043367,120]
[403801187,1769545584985,-500.0,0.00043367,120]
[403801188,1769545585061,-500.0,0.00043367,120]
[403801189,1769545585130,-461.79876822,0.00043367,120]
[403801190,1769545585199,-500.0,0.00043367,120]
[403801191,1769545585269,-513.42717138,0.00043367,120]
[403801192,1769545585337,-500.0,0.00043367,60]
[403801193,1769545585408,-500.0,0.00043367,60]
[403801194,1769545585479,-506.56011205,0.00043367,60]
[403801195,1769545585549,-500.0,0.00043367,120]
[403801196,1769545585619,-532.07104117,0.00043367,120]
[403801197,1769545585690,-500.0,0.00043367,120]
[403801198,1769545585759,-500.0,0.00043367,120]
[403801199,1769545585829,-154.50123321,0.00043367,120]
[403801200,1769545585898,-500.74742519,0.00043367,120]
[403801201,1769545585966,-519.72,0.00043367,120]
[403801202,1769545586041,-500.0,0.00043367,120]
[403801203,1769545586110,-500.0,0.00043367,120]
[403801204,1769545586178,-500.0,0.00043367,120]
[403801205,1769545586245,-500.0,0.00043367,120]
[403801206,1769545586311,-500.0,0.00043367,120]
[403801207,1769545586373,-500.0,0.00043367,120]
[403801208,1769545586437,-500.0,0.00043367,120]
[403801209,1769545586502,-512.72634593,0.00043367,120]
[403801210,1769545586567,-500.0,0.00043367,120]
[403801211,1769545586632,-550.42708735,0.00043367,120]
[403801212,1769545586698,-500.0,0.00043367,120]
[403801213,1769545586765,-500.0,0.00043367,120]
[403801214,1769545586831,-500.0,0.00043367,120]
[403801215,1769545586897,-500.0,0.00043367,120]
[403801216,1769545586965,-547.40588962,0.00043367,120]
[403801217,1769545587037,-500.0,0.00043367,120]
[403801218,1769545587104,-500.0,0.00043367,120]
[403801219,1769545587171,-536.07281146,0.00043367,120]
[403801220,1769545587237,-500.0,0.00043367,120]
[403801221,1769545587707,-500.0,0.00043367,120]
[403801222,1769545587780,-502.16554932,0.00043367,120]
[403801223,1769545587848,-500.0,0.00043367,120]
[403801224,1769545587913,-500.0,0.00043367,120]
[403801225,1769545587981,-500.0,0.00043367,120]
[403801226,1769545588045,-554.47339882,0.00043367,120]
[403801227,1769545588111,-540.41626254,0.00043367,120]
[403801228,1769545588176,-510.84201815,0.00043367,120]
[403801229,1769545588243,-500.0,0.00043367,120]
[403801230,1769545588307,-500.0,0.00043367,120]
[403801231,1769545588374,-500.0,0.00043367,120]
[403801232,1769545588437,-500.0,0.00043367,120]
[403801233,1769545588502,-500.0,0.00043367,120]
[403801234,1769545588585,-500.0,0.00043367,120]
[403801235,1769545588649,-500.0,0.00043367,120]
[403801236,1769545588712,-500.0,0.00043367,120]
[403801237,1769545588777,-530.07588358,0.00043367,120]